bitfinex/quotes_SOLUSD_20250118
["timestamp","ask_amount","ask_price","bid_price","bid_amount"]
[1737221451178,31.93417938,251.71,251.61,31.93417938]
[1737221451350,1.67683712,251.77,251.6,31.93417938]
[1737221451351,32.67911474,251.7,251.6,31.93417938]
[1737221451548,31.93417938,251.75,251.42,33.02637146]
[1737221451754,0.74493976,251.74,251.43,23.776884]
[1737221451972,31.93417938,251.75,251.64,31.93417938]
[1737221452452,1.67641034,251.77,251.68,31.93417938]
[1737221452655,0.89718497,251.77,251.71,31.93417938]
[1737221452856,0.89718497,251.77,251.75,31.93417938]
[1737221453049,0.063,251.89,251.76,31.93417938]
[1737221453248,0.063,251.89,251.85,31.93417938]
[1737221453462,0.063,251.89,251.83,31.93417938]
[1737221453871,31.93417938,251.87,251.76,31.93417938]
[1737221454049,0.80762056,251.86,251.78,31.93417938]
[1737221454249,0.063,251.86,251.8,31.93417938]
[1737221454956,0.063,251.86,251.84,31.93417938]
[1737221455261,0.063,251.86,251.81,31.93417938]
[1737221455478,0.063,251.86,251.79,31.93417938]
[1737221455860,0.063,251.86,251.81,31.93417938]
[1737221456562,0.063,251.86,251.79,31.93417938]
[1737221456763,0.063,251.86,251.83,31.93417938]
[1737221456957,0.063,251.86,251.85,31.93417938]
[1737221457279,0.063,252.01,251.86,23.776884]
[1737221457469,4.0312,252.01,251.76,17.07517795]
[1737221457661,0.74429144,252.0,251.76,15.882165]
[1737221457859,0.74429144,252.0,251.77,23.776884]
[1737221458363,0.8071778,252.01,251.77,23.776884]
[1737221458665,31.93417938,252.0,251.89,31.93417938]
[1737221458863,0.063,252.01,251.93,31.93417938]
[1737221459260,31.93417938,251.98,251.89,31.93417938]
[1737221459572,0.063,252.01,251.91,31.93417938]
[1737221459775,0.063,252.01,251.93,31.93417938]
[1737221460454,0.063,252.01,251.81,31.93417938]
[1737221460455,0.063,252.01,251.96,23.776884]
[1737221460782,31.93417938,252.26,252.0,63.86835876]
[1737221460981,8.3144,252.39,251.94,31.93417938]
[1737221460982,0.74335236,252.32,252.14,31.93417938]
[1737221461186,31.93417938,252.39,252.27,31.93417938]
[1737221461478,0.063,252.41,252.31,31.93417938]
[1737221461657,0.063,252.41,252.39,31.93417938]
[1737221461855,0.74270311,252.57,252.39,31.93417938]
[1737221462161,31.93417938,252.54,252.43,31.93417938]
[1737221462365,0.74257625,252.53,252.39,31.93417938]
[1737221462562,0.74269565,252.58,252.2,31.93417938]
[1737221462758,31.93417938,252.56,252.45,31.93417938]
[1737221462951,0.063,252.64,252.2,25.05221174]
[1737221463173,0.063,252.64,252.53,31.93417938]
[1737221463378,31.93417938,252.63,252.21,42.86]
[1737221463555,0.063,252.64,252.46,31.93417938]
[1737221463762,31.93417938,252.6,252.21,44.0315441]
[1737221463964,0.063,252.64,252.21,42.86]
[1737221464177,31.93417938,252.58,252.21,42.86]
[1737221464365,31.93417938,252.56,252.45,31.93417938]
[1737221464567,31.93417938,252.56,252.21,42.86]
[1737221464568,0.74263657,252.55,252.35,31.93417938]
[1737221464873,31.93417938,252.48,252.36,31.93417938]
[1737221465060,0.74287283,252.47,252.2,31.93417938]
[1737221465261,0.74308863,252.53,252.13,1.21148849]
[1737221465973,20.0,252.41,252.05,13.1525]
[1737221466281,23.776884,252.48,252.05,13.1525]
[1737221466282,31.93417938,252.28,252.17,31.93417938]
[1737221466465,31.93417938,252.26,252.15,31.93417938]
[1737221466662,31.93417938,252.21,252.01,8.2197]
[1737221466865,31.93417938,252.23,252.14,31.93417938]
[1737221467076,31.93417938,252.26,252.14,31.93417938]
[1737221467256,31.93417938,252.2,252.1,31.93417938]
[1737221467461,31.93417938,252.2,252.08,31.93417938]
[1737221467669,31.93417938,252.18,252.08,31.93417938]
[1737221467866,23.776884,252.09,251.92,31.93417938]
[1737221468067,31.93417938,252.09,251.79,13.1525]
[1737221468256,0.74386094,252.08,251.89,31.93417938]
[1737221468456,31.93417938,251.96,251.86,31.93417938]
[1737221468657,0.74406337,252.12,251.77,0.03]
[1737221468658,23.776884,251.94,251.77,0.03]
[1737221468877,31.93417938,251.81,251.77,0.03]
[1737221469079,31.93417938,251.79,251.77,0.03]
[1737221469473,0.74472461,251.78,251.77,0.03]
[1737221469659,31.93417938,251.79,251.77,0.03]
[1737221469979,0.74476713,251.78,251.77,0.03]
[1737221470158,31.93417938,251.79,251.77,0.03]
[1737221470575,31.93417938,251.88,251.77,31.96417938]
[1737221470758,31.93417938,251.92,251.8,31.93417938]
[1737221470954,31.93417938,251.96,251.84,31.93417938]
[1737221471155,31.93417938,251.96,251.86,31.93417938]
[1737221471354,0.74418445,252.04,251.88,31.93417938]
[1737221471555,31.93417938,252.07,251.97,31.93417938]
[1737221471775,31.93417938,252.12,252.01,31.93417938]
[1737221472084,0.74366946,252.19,252.1,31.93417938]
[1737221472381,31.93417938,252.23,252.12,31.93417938]
[1737221472583,31.93417938,252.17,252.08,31.93417938]
[1737221472760,31.93417938,252.18,252.07,31.93417938]
[1737221472955,31.93417938,252.17,252.07,31.93417938]
[1737221473468,31.93417938,252.19,252.07,31.93417938]
[1737221473774,31.93417938,252.17,252.07,31.93417938]
[1737221473958,31.93417938,252.17,252.05,31.93417938]
[1737221474358,31.93417938,252.15,252.05,31.93417938]
[1737221474574,31.93417938,252.15,252.03,31.93417938]
[1737221474775,31.93417938,252.11,252.01,31.93417938]
[1737221474969,31.93417938,252.07,251.97,31.93417938]
[1737221475272,31.93417938,252.05,251.95,31.93417938]
[1737221475578,31.93417938,252.02,251.96,0.063]
[1737221475882,10.65719773,252.19,251.96,0.063]
[1737221475883,31.93417938,252.06,251.96,0.063]
[1737221476055,3.966,252.15,251.96,0.063]
[1737221476056,31.93417938,252.0,251.96,0.063]
[1737221476378,31.93417938,252.02,251.96,0.063]
[1737221476583,0.7439776,252.01,251.96,0.063]
[1737221476874,31.93417938,252.0,251.96,0.063]
[1737221477177,31.93417938,251.98,251.96,0.063]
[1737221477372,24.52111991,251.97,251.96,0.063]
[1737221477774,56.45529929,251.97,251.96,0.063]
[1737221477963,24.52111991,251.97,251.96,0.063]
[1737221478286,56.45529929,251.97,251.96,0.063]
[1737221478977,28.48981991,251.97,251.96,0.063]
[1737221479485,23.776884,251.88,251.77,0.03]
[1737221479665,31.93417938,251.78,251.77,0.03]
[1737221480065,31.93417938,251.8,251.77,0.03]
[1737221480260,31.93417938,251.86,251.77,0.03]
[1737221480487,31.93417938,251.8,251.77,0.03]
[1737221481477,0.74473787,251.79,251.77,0.03]
[1737221481678,31.93417938,251.78,251.7,0.063]
[1737221481989,87.64524276,251.71,251.7,0.063]
[1737221482288,31.93417938,251.68,251.6,31.93417938]
[1737221482484,31.93417938,251.65,251.51,0.063]
[1737221482683,20.0,251.77,251.51,0.063]
[1737221482888,0.74505856,251.76,251.51,0.063]
[1737221483077,3.9734,251.67,251.51,0.063]
[1737221483281,0.7452212,251.66,251.51,0.063]
[1737221483476,23.776884,251.61,251.51,0.063]
[1737221483682,31.93417938,251.53,251.51,0.063]
[1737221484168,0.74544745,251.52,251.51,0.063]
[1737221484368,0.74544745,251.52,251.51,0.0001]
[1737221484589,23.776884,251.51,251.49,0.0001]
[1737221484789,31.93417938,251.51,251.49,0.0001]
[1737221484983,0.74586002,251.5,251.49,0.0001]
[1737221485476,0.74557731,251.5,251.49,0.0001]
[1737221485784,24.52246131,251.5,251.49,0.0001]
[1737221486385,0.74557731,251.5,251.49,0.0001]
[1737221486873,0.74573964,251.5,251.49,0.0001]
[1737221487073,4.72183964,251.5,251.49,0.0001]
[1737221487287,31.93417938,251.51,251.49,0.0001]
[1737221487497,0.74560393,251.5,251.49,0.0001]
[1737221487868,31.93417938,251.51,251.49,0.0001]
[1737221488175,31.93417938,251.53,251.49,0.0001]
[1737221488382,31.93417938,251.51,251.49,0.0001]
[1737221488979,31.93417938,251.65,251.49,31.93427938]
[1737221489290,31.93417938,251.69,251.58,31.93417938]
[1737221489482,31.93417938,251.59,251.49,31.93427938]
[1737221489677,13.9037,251.73,251.49,31.93427938]
[1737221489678,0.74540593,251.58,251.49,0.0001]
[1737221489878,23.776884,251.5,251.29,31.93417938]
[1737221490078,31.93417938,251.46,251.36,31.93417938]
[1737221490393,31.93417938,251.48,251.38,31.93417938]
[1737221490689,0.74564063,251.54,251.45,31.93417938]
[1737221490990,31.93417938,251.61,251.49,31.93417938]
[1737221491294,31.93417938,251.59,251.49,31.93417938]
[1737221491593,31.93417938,251.61,251.51,31.93417938]
[1737221491779,31.93417938,251.59,251.49,31.93417938]
[1737221491979,31.93417938,251.61,251.51,31.93417938]
[1737221492179,0.74531347,251.6,251.51,31.93417938]
[1737221492389,31.93417938,251.57,251.47,31.93417938]
[1737221492591,31.93417938,251.55,251.43,31.93417938]
[1737221492803,31.93417938,251.53,251.41,31.93417938]
[1737221493003,0.74559616,251.52,251.43,31.93417938]
[1737221493700,3.9754,251.55,251.45,31.93417938]
[1737221493898,0.74551846,251.54,251.45,31.93417938]
[1737221494091,0.74551847,251.56,251.45,31.93417938]
[1737221494996,23.776884,251.5,251.4,31.93417938]
[1737221495198,31.93417938,251.48,251.38,31.93417938]
[1737221495495,0.74576812,251.54,251.46,31.93417938]
[1737221495698,0.74545902,251.57,251.48,31.93417938]
[1737221495886,4.72055902,251.57,251.46,31.93417938]
[1737221496200,31.93417938,251.56,251.44,31.93417938]
[1737221496396,0.74547836,251.55,251.44,31.93417938]
[1737221496694,31.93417938,251.48,251.37,31.93417938]
[1737221496901,31.93417938,251.44,251.33,31.93417938]
[1737221497198,31.93417938,251.46,251.35,31.93417938]
[1737221497398,0.74585461,251.54,251.37,31.93417938]
[1737221497703,23.776884,251.47,251.37,31.93417938]
[1737221497896,31.93417938,251.45,251.34,31.93417938]
[1737221498081,0.74585485,251.44,251.34,31.93417938]
[1737221498276,0.74586481,251.44,251.34,31.93417938]
[1737221498480,24.52274881,251.44,251.34,31.93417938]
[1737221498682,24.52274881,251.44,251.16,31.93417938]
[1737221498683,23.776884,251.38,251.28,31.93417938]
[1737221498887,31.93417938,251.35,251.24,31.93417938]
[1737221499086,31.93417938,251.28,251.17,31.93417938]
[1737221499283,31.93417938,251.28,251.1,12.9522]
[1737221499284,31.93417938,251.22,251.11,31.93417938]
[1737221499502,31.93417938,251.17,251.1,0.063]
[1737221499704,0.74665065,251.16,251.1,0.063]
[1737221499997,31.93417938,251.21,251.12,31.93417938]
[1737221500304,23.776884,251.18,251.1,0.063]
[1737221500524,32.68082243,251.23,251.12,31.93417938]
[1737221500800,31.93417938,251.21,251.1,31.99717938]
[1737221500988,31.93417938,251.21,251.12,31.93417938]
[1737221501301,23.776884,251.2,251.1,31.99717938]
[1737221501493,32.68067337,251.2,251.1,31.99717938]
[1737221501806,31.93417938,251.22,251.12,31.93417938]
[1737221502005,35.91467938,251.22,251.12,31.93417938]
[1737221502204,31.93417938,251.18,251.1,0.063]
[1737221502403,31.93417938,251.16,251.1,0.063]
[1737221502588,31.93417938,251.14,251.1,0.063]
[1737221502992,31.93417938,251.16,251.1,0.063]
[1737221503191,31.93417938,251.23,251.12,31.93417938]
[1737221503399,31.93417938,251.2,251.1,0.063]
[1737221503606,3.9807,251.21,250.82,1.25274138]
[1737221503607,31.93417938,251.11,250.82,1.25274138]
[1737221503909,31.93417938,251.16,250.91,31.93417938]
[1737221503910,31.93417938,251.02,250.91,31.93417938]
[1737221504293,31.93417938,251.1,250.99,31.93417938]
[1737221504487,31.93417938,251.04,250.93,31.93417938]
[1737221504688,31.93417938,251.0,250.91,31.93417938]
[1737221505301,31.93417938,251.06,250.95,31.93417938]
[1737221505531,31.93417938,251.08,250.99,31.93417938]
[1737221505685,0.74689148,251.07,250.93,31.93417938]
[1737221505885,31.93417938,251.06,250.95,31.93417938]
[1737221506092,0.74694621,251.05,250.95,31.93417938]
[1737221506393,31.93417938,251.09,250.99,31.93417938]
[1737221506807,0.74677682,251.22,251.07,31.93417938]
[1737221507011,31.93417938,251.36,251.2,31.93417938]
[1737221507188,0.74613641,251.35,251.03,31.93417938]
[1737221507393,31.93417938,251.31,251.2,31.93417938]
[1737221507696,0.74618282,251.3,251.21,31.93417938]
[1737221507894,31.93417938,251.33,251.23,31.93417938]
[1737221508114,32.68052746,251.37,251.27,31.93417938]
[1737221508495,31.93417938,251.35,251.25,31.93417938]
[1737221508809,4.72413564,251.38,251.29,31.93417938]
[1737221509111,0.74613564,251.38,251.29,31.93417938]
[1737221509291,0.74599327,251.4,251.29,31.93417938]
[1737221509492,23.776884,251.36,251.27,31.93417938]
[1737221509713,32.6802962,251.35,251.23,31.93417938]
[1737221509902,32.6802962,251.35,251.25,31.93417938]
[1737221510103,0.74612567,251.38,251.29,31.93417938]
[1737221510301,31.93417938,251.43,251.33,31.93417938]
[1737221510610,0.74588547,251.42,251.37,31.93417938]
[1737221510811,0.03,251.49,251.4,31.93417938]
[1737221511018,0.03,251.49,251.46,31.93417938]
[1737221511316,0.03,251.49,251.48,31.93417938]
[1737221511511,0.03,251.49,251.42,31.93417938]
[1737221511808,31.93417938,251.47,251.38,31.93417938]
[1737221512009,31.93417938,251.45,251.29,31.93417938]
[1737221512212,32.70995633,251.49,251.38,31.93417938]
[1737221512415,51.93417938,251.44,251.34,31.93417938]
[1737221512715,0.03,251.49,251.4,31.93417938]
[1737221512910,0.77574685,251.49,251.4,31.93417938]
[1737221513220,0.77574685,251.49,251.42,31.93417938]
[1737221513396,0.03,251.49,251.48,31.93417938]
[1737221515095,0.74537536,251.77,251.49,23.776884]
[1737221515297,13.2178,251.91,251.66,31.93417938]
[1737221515298,4.0022,251.75,251.66,31.93417938]
[1737221515610,4.0022,251.75,251.38,214.41559177]
[1737221515611,0.74488727,251.74,251.38,214.41559177]
[1737221515812,0.74488727,251.74,251.38,15.901526]
[1737221516613,0.03,251.75,251.66,31.93417938]
[1737221516797,0.03,251.75,251.68,31.93417938]
[1737221517107,0.03,251.75,251.74,31.93417938]
[1737221517898,0.03,251.75,251.72,31.93417938]
[1737221518212,0.03,251.75,251.62,31.93417938]
[1737221518213,31.93417938,251.74,251.62,31.93417938]
[1737221518411,0.74501077,251.73,251.62,31.93417938]
[1737221518612,0.03,251.75,251.68,31.93417938]
[1737221518822,0.03,251.75,251.72,31.93417938]
[1737221519204,0.03,251.75,251.69,31.93417938]
[1737221519402,0.03,251.75,251.66,31.93417938]
[1737221519598,31.93417938,251.74,251.64,31.93417938]
[1737221519821,0.74496417,251.73,251.64,31.93417938]
[1737221520026,4.0021,251.75,251.64,31.93417938]
[1737221520027,27.778984,251.75,251.64,31.93417938]
[1737221520333,23.776884,251.73,251.64,31.93417938]
[1737221520501,0.74503687,251.73,251.72,31.93417938]
[1737221520700,31.93417938,251.94,251.72,31.93417938]
[1737221521026,0.77443603,252.01,251.9,31.93417938]
[1737221521203,31.93417938,252.0,251.88,31.93417938]
[1737221521518,31.93417938,251.96,251.86,31.93417938]
[1737221521727,31.93417938,251.94,251.84,31.93417938]
[1737221521926,0.74443488,251.93,251.86,31.93417938]
[1737221522105,31.93417938,251.92,251.8,31.93417938]
[1737221522307,55.71106338,251.9,251.78,31.93417938]
[1737221522614,0.74449661,251.89,251.8,31.93417938]
[1737221522814,23.776884,251.88,251.8,31.93417938]
[1737221523027,55.71106338,251.81,251.68,31.93417938]
[1737221523218,31.93417938,251.84,251.74,31.93417938]
[1737221523399,31.93417938,251.8,251.69,31.93417938]
[1737221523607,55.71106338,251.78,251.67,31.93417938]
[1737221523803,31.93417938,251.74,251.63,31.93417938]
[1737221524107,31.93417938,251.7,251.59,31.93417938]
[1737221524306,31.93417938,251.66,251.55,31.93417938]
[1737221524511,31.93417938,251.64,251.53,31.93417938]
[1737221524714,0.74522557,251.63,251.53,31.93417938]
[1737221525019,31.93417938,251.64,251.53,31.93417938]
[1737221525315,31.93417938,251.6,251.49,31.93417938]
[1737221525515,0.74537296,251.59,251.49,31.93417938]
[1737221525720,4.72007296,251.59,251.55,0.063]
[1737221526726,55.71106338,251.56,251.55,0.063]
[1737221526930,23.776884,251.55,251.39,31.93417938]
[1737221527123,31.93417938,251.52,251.41,31.93417938]
[1737221527323,31.93417938,251.58,251.47,31.93417938]
[1737221527627,55.71106338,251.56,251.45,31.93417938]
[1737221527806,0.7455102,251.55,251.45,31.93417938]
[1737221528006,31.93417938,251.58,251.47,31.93417938]
[1737221528218,31.93417938,251.64,251.53,31.93417938]
[1737221528612,3.9738,251.65,251.55,31.93417938]
[1737221528810,4.71921473,251.64,251.55,31.93417938]
[1737221529215,23.776884,251.61,251.51,31.93417938]
[1737221529413,0.74538907,251.6,251.51,31.93417938]
[1737221529614,55.71106338,251.6,251.49,31.93417938]
[1737221529826,23.776884,251.58,251.49,31.93417938]
[1737221530031,0.74544487,251.57,251.49,31.93417938]
[1737221531216,3.9745,251.61,251.53,31.93417938]
[1737221531435,0.74529617,251.6,251.53,31.93417938]
[1737221531616,0.74535656,251.62,251.55,31.93417938]
[1737221531816,31.93417938,251.7,251.6,31.93417938]
[1737221532027,3.9724,251.74,251.67,31.93417938]
[1737221532224,23.776884,251.7,251.61,31.93417938]
[1737221532427,13.9032,251.74,251.57,31.93417938]
[1737221532428,32.67929837,251.69,251.57,31.93417938]
[1737221532731,0.74511899,251.69,251.59,31.93417938]
[1737221532934,31.93417938,251.69,251.59,31.93417938]
[1737221533138,3.9734,251.67,251.59,31.93417938]
[1737221533314,0.74518601,251.66,251.59,31.93417938]
[1737221533515,3.9732,251.69,251.62,31.93417938]
[1737221534117,4.71825552,251.69,251.62,31.93417938]
[1737221535111,1.4058462,251.74,251.48,15.897573]
[1737221535112,0.74502338,251.74,251.68,31.93417938]
[1737221535317,4.0022,251.75,251.7,31.93417938]
[1737221535635,32.67903026,251.74,251.62,31.93417938]
[1737221535824,23.776884,251.71,251.62,31.93417938]
[1737221536017,31.93417938,251.66,251.56,31.93417938]
[1737221536339,31.93417938,251.66,251.25,198.51406577]
[1737221536340,23.776884,251.61,251.52,31.93417938]
[1737221536511,3.9747,251.59,251.52,31.93417938]
[1737221536714,3.9747,251.59,251.43,15.900519]
[1737221536715,31.93417938,251.54,251.44,31.93417938]
[1737221537042,3.9747,251.59,251.5,31.93417938]
[1737221537230,31.93417938,251.58,251.48,31.93417938]
[1737221537435,23.776884,251.49,251.39,31.93417938]
[1737221537635,20.0,251.43,251.21,5.89580165]
[1737221537935,0.74603812,251.42,251.21,5.89580165]
[1737221538147,20.0,251.55,251.28,15.909148]
[1737221538434,0.74592799,251.54,251.21,0.063]
[1737221538610,31.93417938,251.5,251.39,31.93417938]
[1737221538812,23.776884,251.48,251.39,31.93417938]
[1737221539042,31.93417938,251.59,251.46,31.93417938]
[1737221539246,4.71921991,251.65,251.56,31.93417938]
[1737221539421,4.71921991,251.65,251.58,31.93417938]
[1737221539611,0.74541991,251.65,251.59,31.93417938]
[1737221539814,0.7452175,251.69,251.62,31.93417938]
[1737221540032,3.9729,251.7,251.6,31.93417938]
[1737221540343,32.67935518,251.69,251.58,31.93417938]
[1737221540541,31.93417938,251.67,251.56,31.93417938]
[1737221540721,31.93417938,251.63,251.52,31.93417938]
[1737221541035,3.9736,251.66,251.58,31.93417938]
[1737221541217,31.93417938,251.6,251.49,31.93417938]
[1737221541618,55.71106338,251.58,251.47,31.93417938]
[1737221541924,31.93417938,251.61,251.5,31.93417938]
[1737221542114,31.93417938,251.57,251.46,31.93417938]
[1737221542318,0.74546927,251.56,251.46,31.93417938]
[1737221542825,55.71106338,251.55,251.44,31.93417938]
[1737221543143,23.776884,251.44,251.3,31.99717938]
[1737221543328,31.93417938,251.44,251.34,31.93417938]
[1737221543643,31.93417938,251.46,251.34,31.93417938]
[1737221543935,31.93417938,251.47,251.3,0.063]
[1737221544136,31.93417938,251.43,251.32,31.93417938]
[1737221544346,31.93417938,251.48,251.37,31.93417938]
[1737221544641,0.74571855,251.55,251.45,31.93417938]
[1737221544815,31.93417938,251.49,251.38,31.93417938]
[1737221545017,31.93417938,251.47,251.36,31.93417938]
[1737221545831,31.93417938,251.4,251.3,0.063]
[1737221546122,31.93417938,251.48,251.37,31.93417938]
[1737221546427,31.93417938,251.46,251.3,0.063]
[1737221546628,31.93417938,251.48,251.37,31.93417938]
[1737221546837,31.93417938,251.5,251.39,31.93417938]
[1737221547021,31.93417938,251.58,251.47,31.93417938]
[1737221547428,31.93417938,251.56,251.45,31.93417938]
[1737221547621,0.74548549,251.55,251.45,31.93417938]
[1737221548618,0.74548549,251.55,251.3,23.839884]
[1737221548619,0.7454838,251.66,251.53,31.93417938]
[1737221548822,62.30137241,251.82,251.55,31.93417938]
[1737221548823,31.93417938,251.67,251.55,31.93417938]
[1737221549024,31.93417938,251.67,251.42,31.93417938]
[1737221549334,32.67924091,251.71,251.61,31.93417938]
[1737221549718,32.70920937,251.75,251.63,31.93417938]
[1737221549920,32.70920937,251.75,251.55,31.93417938]
[1737221549921,31.93417938,251.65,251.55,31.93417938]
[1737221550121,31.93417938,251.57,251.45,31.93417938]
[1737221550323,31.93417938,251.53,251.43,31.93417938]
[1737221550557,0.74546832,251.52,251.41,31.93417938]
[1737221550716,0.74546832,251.52,251.43,31.93417938]
[1737221550717,0.7455676,251.52,251.43,31.93417938]
[1737221550922,31.93417938,251.49,251.38,31.99717938]
[1737221551136,0.74572114,251.48,251.38,31.99717938]
[1737221551852,23.776884,251.44,251.38,0.063]
[1737221552031,0.74583857,251.43,251.38,0.063]
[1737221552345,24.52272272,251.44,251.38,0.063]
[1737221552547,0.06043677,254.56,251.38,0.063]
[1737221552548,31.93417938,251.51,251.42,31.93417938]
[1737221552729,32.67971652,251.5,251.4,31.93417938]
[1737221552930,31.93417938,251.48,251.38,31.99717938]
[1737221553243,55.71106338,251.39,251.38,0.063]
[1737221553746,23.776884,251.39,251.38,0.063]
[1737221554050,31.93417938,251.45,251.38,0.063]
[1737221554243,0.74579336,251.44,251.38,0.063]
[1737221554438,31.93417938,251.49,251.39,31.93417938]
[1737221554642,0.74564997,251.48,251.38,0.063]
[1737221554839,23.776884,251.46,251.38,0.063]
[1737221555028,31.93417938,251.49,251.38,0.063]
[1737221555232,31.93417938,251.52,251.41,31.93417938]
[1737221555428,31.93417938,251.59,251.47,31.93417938]
[1737221555733,0.74559439,251.6,251.43,31.93417938]
[1737221555734,31.93417938,251.53,251.43,31.93417938]
[1737221555937,0.74560477,251.52,251.41,31.93417938]
[1737221556138,0.74560477,251.52,251.43,31.93417938]
[1737221556343,0.74560477,251.52,251.45,31.93417938]
[1737221556639,31.93417938,251.6,251.49,31.93417938]
[1737221556842,0.7453733,251.59,251.52,31.93417938]
[1737221557042,0.74533234,251.61,251.52,31.93417938]
[1737221557227,31.93417938,251.6,251.5,31.93417938]
[1737221557429,0.74544722,251.59,251.5,31.93417938]
[1737221558133,0.74541131,251.61,251.54,31.93417938]
[1737221558336,36.65257431,251.7,251.6,31.93417938]
[1737221558540,0.74539493,251.7,251.62,31.93417938]
[1737221558739,0.7751164,251.74,251.68,31.93417938]
[1737221558941,0.74490418,251.88,251.73,23.776884]
[1737221559150,4.71350981,251.95,251.55,31.93417938]
[1737221559339,0.70442106,251.94,251.55,31.93417938]
[1737221559541,0.74495526,251.93,251.55,31.93417938]
[1737221559756,0.70442106,251.92,251.41,5.83280165]
[1737221559932,0.74495258,251.91,251.41,5.83280165]
[1737221560246,23.776884,251.64,251.42,37.76698103]
[1737221560428,31.93417938,251.61,251.52,31.93417938]
[1737221560633,23.776884,251.62,251.42,37.76698103]
[1737221560634,31.93417938,251.65,251.54,31.93417938]
[1737221560834,23.776884,251.63,251.54,31.93417938]
[1737221561036,0.74527569,251.64,251.57,31.93417938]
[1737221561233,31.93417938,251.73,251.63,31.93417938]
[1737221561433,0.7450283,251.84,251.72,31.93417938]
[1737221561654,31.93417938,251.78,251.68,31.93417938]
[1737221561830,20.0,251.87,251.55,31.93417938]
[1737221562039,0.74470297,251.86,251.55,31.93417938]
[1737221562735,23.776884,251.85,251.55,31.93417938]
[1737221562940,31.93417938,251.65,251.55,31.93417938]
[1737221563237,0.03,251.61,251.57,31.93417938]
[1737221564065,0.03,251.61,251.59,31.93417938]
[1737221564228,0.03,251.61,251.57,31.93417938]
[1737221564639,0.03,251.61,251.59,31.93417938]
[1737221565134,0.00196042,251.61,251.59,31.93417938]
[1737221565847,0.74511512,251.68,251.59,31.93417938]
[1737221566049,0.74511512,251.68,251.48,5.83280165]
[1737221566050,31.93417938,251.67,251.57,31.93417938]
[1737221566248,31.93417938,251.67,251.44,5.83280165]
[1737221566249,31.93417938,251.69,251.6,31.93417938]
[1737221566444,0.74510041,251.68,251.58,31.93417938]
[1737221566649,31.93417938,251.66,251.55,31.93417938]
[1737221566845,0.74521621,251.68,251.6,31.93417938]
[1737221567055,4.71851621,251.68,251.58,31.93417938]
[1737221567255,51.93417938,251.63,251.52,31.93417938]
[1737221567433,0.74531472,251.62,251.52,31.93417938]
[1737221567754,0.74531472,251.62,251.54,31.93417938]
[1737221567955,31.93417938,251.61,251.5,31.93417938]
[1737221568257,31.93417938,251.55,251.46,31.93417938]
[1737221568459,0.74557289,251.54,251.44,31.93417938]
[1737221568959,3.9756,251.53,251.44,31.93417938]
[1737221569260,3.9756,251.53,251.41,0.063]
[1737221569261,43.776884,251.42,251.41,0.063]
[1737221569450,31.93417938,251.39,251.38,0.063]
[1737221569656,7.72,251.42,251.38,0.063]
[1737221569856,31.93417938,251.44,251.38,0.063]
[1737221570038,0.74579358,251.43,251.38,0.063]
[1737221571360,23.776884,251.39,251.38,0.063]
[1737221571559,24.52293778,251.39,251.38,0.063]
[1737221572648,23.776884,251.35,251.3,0.063]
[1737221572850,55.71106338,251.31,251.3,0.063]
[1737221573062,59.69016338,251.31,251.3,0.0001]
[1737221573246,35.91327938,251.31,251.21,0.063]
[1737221573449,31.93417938,251.29,251.21,0.063]
[1737221573658,23.776884,251.22,251.21,0.063]
[1737221573969,23.776884,251.22,251.15,0.063]
[1737221573970,23.776884,251.18,251.15,0.063]
[1737221574266,20.0,251.12,251.0,31.93417938]
[1737221574569,31.93417938,251.1,251.02,31.93417938]
[1737221574740,0.74688396,251.09,251.0,31.93417938]
[1737221574942,0.74688396,251.09,251.02,31.93417938]
[1737221575160,31.93417938,251.17,251.07,31.93417938]
[1737221575464,23.776884,251.15,251.07,31.93417938]
[1737221575654,23.776884,251.15,250.99,0.063]
[1737221575655,39.65417938,251.22,251.21,0.063]
[1737221575964,20.0,251.19,251.06,31.93417938]
[1737221576166,31.93417938,251.15,251.06,31.93417938]
[1737221576347,0.7467577,251.14,251.06,31.93417938]
[1737221576541,31.93417938,251.09,251.0,31.93417938]
[1737221576760,31.93417938,251.11,251.02,31.93417938]
[1737221576952,0.74682534,251.1,251.01,31.93417938]
[1737221577148,0.74682534,251.1,250.99,0.063]
[1737221577149,0.74682534,251.1,251.05,31.93417938]
[1737221577357,31.93417938,251.14,251.05,31.93417938]
[1737221577664,31.93417938,251.1,251.01,31.93417938]
[1737221577859,0.74696558,251.09,251.03,31.93417938]
[1737221578063,23.776884,251.09,251.01,31.93417938]
[1737221578242,23.776884,251.07,251.01,31.93417938]